bitfinex/quotes_BTCUSD_20240826
["timestamp","ask_amount","ask_price","bid_price","bid_amount"]
[1724694360015,2.91835891,63587.0,63586.0,7.4e-07]
[1724694361089,2.87490435,63587.0,63586.0,7.4e-07]
[1724694361739,2.87490435,63587.0,63571.0,0.0004]
[1724694361740,2.04612958,63583.0,63582.0,7.4e-07]
[1724694361911,2.46833927,63583.0,63582.0,7.4e-07]
[1724694362114,2.57811227,63583.0,63582.0,7.4e-07]
[1724694362579,2.64547876,63583.0,63582.0,7.4e-07]
[1724694363189,2.65947876,63583.0,63582.0,7.4e-07]
[1724694363323,2.67347876,63583.0,63582.0,7.4e-07]
[1724694363523,2.83907876,63583.0,63582.0,7.4e-07]
[1724694363723,2.86498675,63583.0,63582.0,7.4e-07]
[1724694364249,2.13332258,63574.0,63573.0,7.4e-07]
[1724694364449,2.84207414,63574.0,63573.0,7.4e-07]
[1724694364650,2.89182745,63574.0,63573.0,7.4e-07]
[1724694365061,2.13233012,63574.0,63573.0,7.4e-07]
[1724694365441,2.13233012,63574.0,63561.0,0.00732198]
[1724694365442,1.416938,63562.0,63561.0,0.00732198]
[1724694365642,1.58283697,63562.0,63561.0,0.00732198]
[1724694366106,1.99748997,63562.0,63561.0,0.00732198]
[1724694366296,2.02270447,63562.0,63561.0,0.00732198]
[1724694366421,2.20183615,63562.0,63561.0,0.00732198]
[1724694366631,2.20183615,63562.0,63545.0,0.0105766]
[1724694366632,1.81362258,63552.0,63545.0,0.0105766]
[1724694366839,1.81362258,63552.0,63551.0,1e-06]
[1724694366840,1.96980059,63552.0,63551.0,1e-06]
[1724694367047,1.96980059,63552.0,63545.0,0.0105766]
[1724694367048,1.18427058,63549.0,63545.0,0.0105766]
[1724694367268,0.00156158,63540.0,63537.0,0.009075]
[1724694367478,1.35368667,63540.0,63537.0,0.009075]
[1724694367677,2.03845567,63540.0,63537.0,0.009075]
[1724694368096,2.03845567,63540.0,63537.0,0.072075]
[1724694368097,1.36749022,63540.0,63537.0,0.072075]
[1724694368943,1.36849022,63540.0,63537.0,0.072075]
[1724694369195,0.73796622,63540.0,63539.0,0.08843041]
[1724694369374,1.06672822,63540.0,63539.0,0.08843041]
[1724694369581,1.37579022,63540.0,63539.0,0.00653041]
[1724694370535,1.69155222,63540.0,63539.0,0.00653041]
[1724694370773,1.7971138,63540.0,63539.0,0.00653041]
[1724694370981,1.95324548,63540.0,63539.0,0.00653041]
[1724694371192,2.03178548,63540.0,63539.0,0.00653041]
[1724694371604,2.0704486,63540.0,63539.0,0.00653041]
[1724694372054,2.0564486,63540.0,63539.0,0.00653041]
[1724694372299,2.0564486,63540.0,63529.0,0.0673]
[1724694372300,0.001,63516.0,63497.0,0.0206866]
[1724694372506,0.001,63515.0,63500.0,0.06743]
[1724694372722,0.04912077,63523.0,63502.0,0.0673]
[1724694372937,0.04912077,63523.0,63507.0,0.0673]
[1724694373158,0.04912077,63523.0,63501.0,0.314951]
[1724694373159,0.01081849,63522.0,63515.0,0.1462]
[1724694373562,0.15617801,63521.0,63515.0,0.0673]
[1724694373768,0.15617801,63521.0,63508.0,0.58835787]
[1724694373769,0.1669723,63521.0,63517.0,0.0673]
[1724694373981,0.1,63520.0,63518.0,0.0789]
[1724694374191,0.15617801,63519.0,63518.0,0.0789]
[1724694374396,0.9541373,63519.0,63518.0,0.0789]
[1724694374634,1.2690033,63519.0,63518.0,0.0789]
[1724694374831,1.2690033,63519.0,63517.0,0.0673]
[1724694374832,1.102048,63518.0,63517.0,0.0673]
[1724694375077,1.04335501,63518.0,63517.0,0.0673]
[1724694375278,0.7392783,63518.0,63517.0,0.0673]
[1724694375892,0.4244073,63518.0,63517.0,0.0673]
[1724694376094,0.2669723,63518.0,63517.0,0.0673]
[1724694376305,0.2809723,63518.0,63517.0,0.0673]
[1724694376507,0.3384073,63518.0,63517.0,0.1527]
[1724694377157,0.1809723,63518.0,63517.0,0.1527]
[1724694377873,0.04118015,63523.0,63518.0,0.0854]
[1724694378083,0.04118015,63523.0,63507.0,0.000824]
[1724694378084,0.02466856,63530.0,63529.0,0.0854]
[1724694378293,0.78355599,63534.0,63530.0,0.0854]
[1724694378501,0.07854,63540.0,63530.0,0.0854]
[1724694378726,0.157384,63539.0,63530.0,0.0854]
[1724694378935,0.15739,63537.0,63532.0,0.0854]
[1724694379144,0.07854,63540.0,63532.0,0.0854]
[1724694379145,0.235922,63540.0,63532.0,0.0854]
[1724694379402,0.472195,63533.0,63532.0,0.0854]
[1724694379603,0.94317001,63533.0,63532.0,0.0854]
[1724694379821,0.62837301,63533.0,63532.0,0.0854]
[1724694380234,0.15617801,63533.0,63532.0,0.0854]
[1724694381517,0.94317001,63533.0,63532.0,0.0854]
[1724694381942,0.94417001,63533.0,63532.0,0.0854]
[1724694382146,0.32357601,63533.0,63532.0,0.0854]
[1724694382351,0.32257601,63533.0,63532.0,0.0854]
[1724694382556,0.62837301,63533.0,63532.0,0.0854]
[1724694382777,0.94317001,63533.0,63532.0,0.0854]
[1724694382978,0.95217001,63533.0,63532.0,0.09578849]
[1724694383181,0.95317001,63533.0,63532.0,0.09578849]
[1724694383537,0.95217001,63533.0,63532.0,0.09578849]
[1724694383733,0.94317001,63533.0,63532.0,0.09578849]
[1724694384135,0.95317001,63533.0,63532.0,0.09578849]
[1724694384519,1.70955921,63533.0,63532.0,0.01038849]
[1724694384697,0.78709,63525.0,63524.0,0.0634]
[1724694384925,1.25810401,63525.0,63524.0,0.0634]
[1724694385340,0.94326801,63525.0,63524.0,0.07366867]
[1724694385471,0.95230205,63525.0,63524.0,0.07366867]
[1724694385669,0.95230205,63525.0,63524.0,0.06324184]
[1724694386103,0.63746605,63525.0,63524.0,0.06324184]
[1724694386495,0.95830205,63525.0,63524.0,0.06324184]
[1724694386692,1.27313805,63525.0,63524.0,0.06324184]
[1724694387698,0.95830205,63525.0,63524.0,0.06324184]
[1724694388410,0.96330205,63525.0,63524.0,0.06324184]
[1724694390232,1.27813805,63525.0,63524.0,0.06324184]
[1724694390430,1.27813805,63525.0,63517.0,0.000825]
[1724694390431,0.787165,63519.0,63518.0,0.0658]
[1724694390630,0.787165,63519.0,63517.0,0.079225]
[1724694390631,0.787177,63518.0,63517.0,0.000825]
[1724694390831,1.35822601,63518.0,63517.0,0.000825]
[1724694390972,1.67309701,63518.0,63517.0,0.000825]
[1724694391175,1.83820056,63518.0,63517.0,0.000825]
[1724694391415,2.23477156,63518.0,63517.0,0.000825]
[1724694391605,2.30894781,63518.0,63517.0,0.000825]
[1724694391808,2.30894781,63518.0,63500.0,0.00013]
[1724694391809,1.77284345,63508.0,63500.0,0.00013]
[1724694392085,2.24394146,63508.0,63500.0,0.00013]
[1724694392261,2.72392963,63508.0,63500.0,0.00013]
[1724694392459,2.84692963,63508.0,63500.0,0.00013]
[1724694393097,2.25856776,63508.0,63500.0,0.00013]
[1724694393240,2.10243608,63508.0,63500.0,0.00013]
[1724694393447,0.001,63491.0,63473.0,0.0658]
[1724694393692,0.157544,63474.0,63473.0,0.0658]
[1724694393902,0.94390001,63474.0,63473.0,0.0658]
[1724694394290,0.95238837,63474.0,63473.0,0.0658]
[1724694395041,0.63729937,63474.0,63473.0,0.0658]
[1724694395256,0.70102931,63474.0,63473.0,0.0658]
[1724694395484,0.787785,63469.0,63468.0,0.00867842]
[1724694395693,0.787785,63469.0,63468.0,0.00824]
[1724694395694,1.25907701,63469.0,63468.0,0.00824]
[1724694395900,1.3673641,63469.0,63468.0,0.00824]
[1724694396307,1.6824781,63469.0,63468.0,0.00824]
[1724694396523,2.30092378,63469.0,63468.0,0.00824]
[1724694396746,2.58666567,63469.0,63468.0,0.00824]
[1724694396951,2.27211325,63469.0,63468.0,0.00824]
[1724694397176,1.98278147,63469.0,63468.0,0.00824]
[1724694397586,1.97048155,63469.0,63468.0,0.00824]
[1724694397757,1.65536755,63469.0,63468.0,0.00824]
[1724694397974,1.66936755,63469.0,63468.0,0.00824]
[1724694398168,1.69703968,63469.0,63468.0,0.00824]
[1724694398326,1.68303968,63469.0,63468.0,0.00824]
[1724694398544,1.69703968,63469.0,63468.0,0.00824]
[1724694398955,1.69803968,63469.0,63468.0,0.00824]
[1724694399384,1.41970958,63463.0,63462.0,0.0144573]
[1724694399615,1.41970958,63463.0,63460.0,0.00824]
[1724694399616,0.15913858,63461.0,63460.0,0.00773417]
[1724694399854,1.44382256,63461.0,63460.0,0.00773417]
[1724694400062,1.75897656,63461.0,63460.0,0.00773417]
[1724694400289,1.75897656,63461.0,63449.0,0.00013709]
[1724694400290,0.158599,63452.0,63449.0,0.00013709]
[1724694400495,2.02005367,63452.0,63449.0,0.00013709]
[1724694400693,1.67613059,63452.0,63449.0,0.00013709]
[1724694400892,1.76168569,63452.0,63449.0,0.00013709]
[1724694401105,1.44648769,63452.0,63449.0,0.00013709]
[1724694401558,1.14472811,63452.0,63449.0,0.00013709]
[1724694402164,0.81553011,63452.0,63449.0,0.00013709]
[1724694402433,0.41433211,63452.0,63450.0,0.0985]
[1724694402634,1.05872811,63452.0,63451.0,0.0771]
[1724694402784,1.37392611,63452.0,63451.0,0.0771]
[1724694402991,1.04472811,63452.0,63451.0,0.0004]
[1724694403207,1.46539892,63452.0,63451.0,0.0004]
[1724694403417,1.99299692,63452.0,63451.0,0.0004]
[1724694403640,2.33692,63452.0,63451.0,0.0004]
[1724694404150,2.39468158,63452.0,63451.0,0.0004]
[1724694404345,2.41937787,63452.0,63451.0,0.0004]
[1724694404581,2.43337787,63452.0,63451.0,0.0004]
[1724694404784,2.41937787,63452.0,63451.0,0.0004]
[1724694404985,2.40537787,63452.0,63451.0,0.0004]
[1724694405188,2.41937787,63452.0,63451.0,0.0004]
[1724694405412,2.43337787,63452.0,63451.0,0.0004]
[1724694405617,2.45637787,63452.0,63451.0,0.0004]
[1724694405824,2.25770506,63452.0,63451.0,0.0004]
[1724694406464,2.24370506,63452.0,63451.0,0.0004]
[1724694406873,2.25770506,63452.0,63451.0,0.0004]
[1724694407300,2.57290306,63452.0,63451.0,0.0004]
[1724694407540,2.26670506,63452.0,63451.0,0.0004]
[1724694407785,2.26670506,63452.0,63431.0,0.0004]
[1724694407786,1.76369608,63435.0,63431.0,0.0004]
[1724694407990,2.52462496,63435.0,63431.0,0.0004]
[1724694408149,2.55518001,63435.0,63431.0,0.0004]
[1724694408362,1.42040258,63432.0,63431.0,0.0004]
[1724694408519,1.97341856,63432.0,63431.0,0.0004]
[1724694408722,2.25531227,63432.0,63431.0,0.0004]
[1724694408949,2.25531227,63432.0,63417.0,0.0055776]
[1724694408950,1.103784,63418.0,63417.0,0.0055776]
[1724694409176,1.67532901,63418.0,63417.0,0.0055776]
[1724694409376,1.85349059,63418.0,63417.0,0.0055776]
[1724694409590,1.85349059,63418.0,63411.0,0.0004]
[1724694409591,1.76470366,63415.0,63414.0,1e-05]
[1724694409818,1.71779982,63415.0,63414.0,1e-05]
[1724694410047,1.37964262,63415.0,63414.0,1e-05]
[1724694410253,1.36734247,63415.0,63414.0,1e-05]
[1724694410453,1.05196047,63415.0,63414.0,1e-05]
[1724694410668,1.05177098,63415.0,63414.0,1e-05]
[1724694410892,1.36715298,63415.0,63414.0,1e-05]
[1724694411099,1.47411456,63415.0,63414.0,1e-05]
[1724694411538,1.78949656,63415.0,63414.0,1e-05]
[1724694411733,1.47411456,63415.0,63414.0,1e-05]
[1724694411949,1.48711456,63415.0,63414.0,1e-05]
[1724694412189,1.52996444,63415.0,63414.0,1e-05]
[1724694412566,1.38115298,63415.0,63414.0,1e-05]
[1724694412770,0.96577098,63415.0,63414.0,1e-05]
[1724694412991,0.157698,63412.0,63411.0,0.0004]
[1724694413193,0.94467001,63412.0,63411.0,0.0004]
[1724694413400,1.26811413,63412.0,63411.0,0.0004]
[1724694413612,1.36711413,63412.0,63411.0,0.0004]
[1724694414240,1.104082,63401.0,63400.0,0.1]
[1724694414439,1.37255798,63401.0,63400.0,0.068454]
[1724694414649,1.36026001,63401.0,63400.0,0.068454]
[1724694414889,1.36730713,63401.0,63400.0,0.068454]
[1724694415939,1.38130713,63401.0,63400.0,0.068454]
[1724694416138,1.52343881,63401.0,63400.0,0.068454]
[1724694416345,1.38130713,63401.0,63400.0,0.068454]
[1724694416557,1.38130713,63401.0,63400.0,0.25378]
[1724694416558,1.28130713,63401.0,63400.0,0.25378]
[1724694416967,0.96585513,63401.0,63400.0,0.25378]
[1724694417427,0.96585513,63401.0,63400.0,0.06928]
[1724694417428,1.28130713,63401.0,63400.0,0.06928]
[1724694417636,1.71098984,63401.0,63400.0,0.06928]
[1724694417883,1.40953784,63401.0,63400.0,0.06928]
[1724694418095,1.42353784,63401.0,63400.0,0.06928]
[1724694418308,1.40953784,63401.0,63400.0,0.06928]
[1724694418535,1.39553784,63401.0,63400.0,0.06928]
[1724694418743,1.42353784,63401.0,63400.0,1e-08]
[1724694419181,2.14200342,63401.0,63400.0,1e-08]
[1724694419387,2.15430177,63401.0,63400.0,1e-08]
[1724694419588,2.16830177,63401.0,63400.0,1e-08]
[1724694419803,2.02607106,63401.0,63400.0,1e-08]
[1724694420011,1.70905748,63401.0,63400.0,1e-08]
[1724694420216,1.71005748,63401.0,63400.0,1e-08]
[1724694420444,1.71061906,63401.0,63400.0,1e-08]
[1724694420871,1.71061906,63401.0,63389.0,0.00014101]
[1724694420872,1.420736,63392.0,63389.0,0.00014101]
[1724694421074,1.68921237,63392.0,63389.0,0.00014101]
[1724694421289,1.69612805,63392.0,63389.0,0.00014101]
[1724694421499,1.37963105,63392.0,63389.0,0.00014101]
[1724694421714,1.06413405,63392.0,63389.0,0.00014101]
[1724694421941,0.63633869,63392.0,63391.0,0.0955]
[1724694422152,0.16309369,63392.0,63391.0,0.1742]
[1724694422418,0.63633869,63392.0,63391.0,0.1742]
[1724694422628,0.65033869,63392.0,63391.0,0.1742]
[1724694422831,0.64342301,63392.0,63391.0,0.1742]
[1724694423044,0.17017801,63392.0,63391.0,0.1742]
[1724694423255,0.17017801,63392.0,63391.0,0.0791]
[1724694423479,0.95892001,63392.0,63391.0,0.0004]
[1724694423917,0.95721813,63392.0,63391.0,0.0955]
[1724694424130,0.62942301,63392.0,63391.0,0.0955]
[1724694424359,0.32792601,63392.0,63391.0,0.0955]
[1724694424564,0.32792601,63392.0,63391.0,0.1972]
[1724694424565,0.17017801,63392.0,63391.0,0.1972]
[1724694424773,0.17017801,63392.0,63391.0,0.354951]
[1724694424979,0.17017801,63392.0,63391.0,0.670453]
[1724694425187,0.17017801,63392.0,63391.0,0.1972]
[1724694425392,0.17017801,63392.0,63391.0,0.512702]
[1724694425610,0.014,63392.0,63391.0,0.670453]
[1724694425801,0.17017801,63392.0,63391.0,0.670453]
[1724694426004,0.315421,63408.0,63393.0,0.0998]
[1724694426247,0.4732,63398.0,63397.0,0.0806]
[1724694426443,0.94484501,63398.0,63397.0,0.0806]
[1724694426647,1.27261036,63398.0,63397.0,0.0806]
[1724694426841,1.27261036,63398.0,63391.0,0.0004]
[1724694426842,0.788742,63392.0,63391.0,0.0004]
[1724694427041,1.27271536,63392.0,63391.0,0.0004]
[1724694427246,1.27871536,63392.0,63391.0,0.0004]
[1724694427855,1.27971536,63392.0,63391.0,0.0004]
[1724694428061,1.91170936,63392.0,63391.0,0.0004]
[1724694428258,1.80859504,63392.0,63391.0,0.0004]
[1724694428787,0.788792,63388.0,63387.0,0.00379101]
[1724694428992,0.95726836,63388.0,63387.0,0.00379101]
[1724694429191,0.95726355,63388.0,63387.0,0.00379101]
[1724694429787,0.95726355,63388.0,63387.0,0.02679101]
[1724694429990,0.64174655,63388.0,63387.0,0.12179101]
[1724694430263,0.16847155,63388.0,63387.0,0.19979101]
[1724694430626,0.15617801,63388.0,63387.0,0.35755201]
[1724694430837,0.15617801,63388.0,63387.0,0.98859601]
[1724694431256,0.00090971,63398.0,63388.0,0.315514]
[1724694431479,0.15617801,63397.0,63392.0,0.078]
[1724694431690,0.15617801,63397.0,63396.0,0.157738]
[1724694431889,0.00090971,63398.0,63397.0,0.568208]
[1724694432092,0.00090971,63398.0,63397.0,0.98468]
[1724694432093,0.15708772,63398.0,63397.0,0.98468]
[1724694432297,0.00090971,63398.0,63397.0,1.300152]
[1724694432505,0.063218,63423.0,63397.0,1.300152]
[1724694432506,0.063218,63423.0,63402.0,0.001]
[1724694432715,0.063218,63423.0,63397.0,0.023]
[1724694432716,0.46876099,63417.0,63416.0,0.252687]
[1724694432922,0.15617801,63417.0,63416.0,0.496065]
[1724694433329,0.315303,63432.0,63418.0,0.315365]
[1724694433531,0.315286,63435.0,63412.0,0.34392308]
[1724694433532,0.16847126,63431.0,63424.0,0.157666]
[1724694433738,0.01229325,63430.0,63428.0,0.252658]
[1724694433938,0.15617801,63429.0,63428.0,0.567976]
[1724694434131,0.15617801,63429.0,63428.0,0.668976]
[1724694435062,0.23471801,63429.0,63428.0,0.984294]
[1724694435277,0.07954,63429.0,63428.0,1.299612]
[1724694435488,0.3152,63452.0,63442.0,0.078]
[1724694435489,0.157608,63449.0,63442.0,0.078]
[1724694435714,0.46876099,63444.0,63442.0,0.078]
[1724694435920,0.15617801,63443.0,63442.0,0.078]
[1724694436127,0.15617801,63443.0,63442.0,0.101]
[1724694436335,0.31379901,63443.0,63442.0,0.101]
[1724694436565,1.25952801,63443.0,63442.0,0.023]
[1724694436767,1.25952801,63443.0,63441.0,0.023]
[1724694436768,0.472872,63442.0,63441.0,0.023]
[1724694436971,0.47142601,63442.0,63437.0,0.023]
[1724694437170,0.315214,63449.0,63437.0,0.023]
[1724694437171,0.15617801,63440.0,63437.0,0.023]
[1724694437386,0.472902,63438.0,63437.0,0.023]
[1724694437593,0.94434801,63438.0,63437.0,0.023]
[1724694438113,0.16324613,63438.0,63437.0,0.118]
[1724694438320,0.16324613,63438.0,63437.0,0.590909]
[1724694438536,0.16324613,63438.0,63437.0,0.906182]
[1724694438744,0.15617801,63438.0,63437.0,0.906182]
[1724694439179,0.16117801,63438.0,63437.0,0.275636]
[1724694439395,0.16117801,63438.0,63437.0,0.095]
[1724694439396,0.94934801,63438.0,63437.0,0.095]
[1724694439613,1.26461601,63438.0,63437.0,0.095]
[1724694439816,1.27213667,63438.0,63437.0,0.095]
[1724694440278,0.472962,63430.0,63429.0,0.0982]
[1724694440506,0.473038,63420.0,63419.0,0.0982]
[1724694440728,0.158636,63438.0,63437.0,0.001]
[1724694440966,0.791172,63438.0,63437.0,0.001]
[1724694441189,0.791172,63438.0,63431.0,0.0804]
[1724694441190,0.157649,63432.0,63431.0,0.0804]
[1724694441427,0.472947,63432.0,63431.0,0.0804]
[1724694441643,0.472962,63430.0,63429.0,0.000826]
[1724694441871,0.15617801,63430.0,63429.0,0.000826]
[1724694442088,0.15617801,63430.0,63429.0,0.789108]
[1724694442312,0.15617801,63430.0,63429.0,0.598795]
[1724694442531,0.15617801,63430.0,63429.0,0.914108]
[1724694442796,0.15617801,63430.0,63429.0,0.598795]
[1724694443020,0.15617801,63430.0,63429.0,0.125826]
[1724694443241,0.15617801,63430.0,63429.0,0.283482]
[1724694443419,0.15617801,63430.0,63429.0,0.125826]
[1724694443666,0.16369415,63430.0,63429.0,0.125826]
[1724694443882,0.95196415,63430.0,63429.0,0.000826]
[1724694444100,0.32134815,63430.0,63429.0,0.000826]
[1724694444321,0.64965615,63430.0,63429.0,0.000826]
[1724694444728,0.97496415,63430.0,63429.0,0.000826]
[1724694444935,0.65965615,63430.0,63429.0,0.000826]
[1724694445143,0.97496415,63430.0,63429.0,0.000826]
[1724694445593,1.30256895,63430.0,63429.0,0.000826]
[1724694445806,1.63159507,63430.0,63429.0,0.000826]
[1724694446433,2.01580307,63430.0,63429.0,0.000826]
[1724694446644,0.0996,63407.0,63394.0,0.00043842]
[1724694446860,0.157748,63392.0,63391.0,0.1048]
[1724694447074,0.157758,63388.0,63387.0,0.00422943]
[1724694447286,0.473275,63388.0,63387.0,0.01623761]
[1724694447511,0.157758,63388.0,63387.0,0.01667603]
[1724694447763,0.15617801,63392.0,63391.0,0.00043842]
[1724694448007,0.15617801,63392.0,63391.0,0.157751]
[1724694448235,0.0779,63416.0,63391.0,0.157751]
[1724694448236,0.0996,63422.0,63392.0,0.1048]
[1724694448441,0.15617801,63408.0,63398.0,0.315465]
[1724694448594,0.15617801,63408.0,63399.0,0.1048]
[1724694448807,0.157721,63403.0,63399.0,0.1048]
[1724694449048,0.15617801,63402.0,63399.0,0.1048]
[1724694449232,0.15617801,63402.0,63400.0,0.180728]
[1724694449434,0.15617801,63402.0,63400.0,0.023]
[1724694449435,0.157726,63401.0,63400.0,0.023]
[1724694449638,0.31390401,63401.0,63400.0,0.023]
[1724694449809,0.15617801,63401.0,63400.0,0.023]
[1724694450791,0.15917801,63401.0,63400.0,0.023]
[1724694450992,0.62935601,63401.0,63400.0,0.023]
[1724694451455,0.63535601,63401.0,63400.0,0.02343842]
[1724694451661,0.63535601,63401.0,63400.0,0.023]
[1724694452008,0.96080801,63401.0,63400.0,0.00043842]
[1724694452215,0.315482,63395.0,63394.0,0.00043842]
[1724694452415,0.473275,63388.0,63387.0,0.10442943]
[1724694452593,0.15617801,63388.0,63387.0,0.10442943]
[1724694452856,0.31393601,63388.0,63387.0,0.10442943]
[1724694453157,0.15598816,63388.0,63387.0,0.26219043]
[1724694453902,0.01,63401.0,63400.0,0.257928]
[1724694454110,0.16617801,63401.0,63400.0,0.280928]
[1724694454312,0.17344553,63401.0,63400.0,0.596385]
[1724694454520,0.17344553,63401.0,63400.0,0.911842]
[1724694454521,0.16344553,63401.0,63400.0,0.911842]
[1724694454725,0.15617801,63401.0,63400.0,0.911842]
[1724694455344,0.315365,63419.0,63400.0,0.438657]
[1724694455547,0.157697,63413.0,63406.0,0.157711]
[1724694455748,0.15617801,63412.0,63407.0,0.023]
[1724694455963,0.473125,63408.0,63407.0,0.023]
[1724694456172,0.47159501,63408.0,63401.0,0.023]
[1724694456378,0.15617801,63407.0,63401.0,0.023]
[1724694456790,0.47314,63406.0,63405.0,0.00043842]
[1724694456998,0.157718,63405.0,63401.0,0.023]
[1724694457175,0.15617801,63404.0,63401.0,0.023]
[1724694457614,0.47317,63402.0,63401.0,0.023]
[1724694457849,0.62934801,63402.0,63401.0,0.02343842]
[1724694458282,0.157738,63396.0,63395.0,0.1054]
[1724694458481,0.00726752,63402.0,63395.0,0.1178466]
[1724694458684,0.012,63404.0,63395.0,0.1178466]
[1724694458894,0.00726752,63401.0,63395.0,0.1178466]
[1724694459112,0.315458,63400.0,63399.0,0.00043842]
[1724694459320,0.157725,63402.0,63401.0,0.00043842]
[1724694459525,0.157736,63397.0,63396.0,0.02343842]
[1724694459725,0.012,63404.0,63401.0,0.00043842]
[1724694459726,0.630894,63402.0,63401.0,0.00043842]
[1724694459937,0.15617801,63403.0,63401.0,0.00043842]
[1724694460159,0.473208,63397.0,63396.0,0.02343842]
[1724694460387,0.47162101,63403.0,63399.0,0.315459]
[1724694460388,0.15617801,63403.0,63399.0,0.315459]
[1724694460600,0.15617801,63403.0,63399.0,0.1075]
[1724694460820,0.15617801,63403.0,63402.0,0.00043842]
[1724694461031,0.15617801,63403.0,63401.0,0.00043842]
[1724694461177,0.157725,63402.0,63401.0,0.00043842]
[1724694461380,0.157725,63402.0,63399.0,0.1075]
[1724694461381,0.15617801,63402.0,63400.0,0.00043842]
[1724694461627,0.15617801,63401.0,63400.0,0.00043842]
[1724694461805,0.15617801,63401.0,63400.0,0.02343842]
[1724694461960,0.15617801,63401.0,63400.0,0.023]
[1724694462168,0.315402,63411.0,63400.0,0.023]
[1724694462169,0.315386,63415.0,63400.0,0.496185]
[1724694462367,0.1042,63423.0,63404.0,0.1866]
[1724694462368,0.15617801,63414.0,63404.0,0.1866]
[1724694462566,0.315394,63413.0,63405.0,0.023]
[1724694462774,0.15617801,63412.0,63405.0,0.180715]
[1724694462976,0.15617801,63412.0,63407.0,0.15771]
[1724694463179,0.15617801,63412.0,63409.0,0.1045]
[1724694463404,0.15617801,63412.0,63411.0,0.157701]
[1724694463575,0.15617801,63412.0,63410.0,0.023]
[1724694463994,0.17017801,63412.0,63410.0,0.023]
[1724694464990,0.18417801,63412.0,63410.0,0.023]
[1724694465245,0.15617801,63411.0,63398.0,0.0853]
[1724694465429,0.157738,63396.0,63395.0,0.10493842]
[1724694465648,0.31391601,63396.0,63395.0,0.10493842]
[1724694465852,0.15617801,63396.0,63395.0,0.10493842]
[1724694466073,0.15617801,63396.0,63395.0,0.1045]
[1724694466274,0.31391601,63396.0,63395.0,0.1169466]
[1724694466422,0.15617801,63396.0,63395.0,0.1045]
[1724694466802,0.15617801,63396.0,63395.0,0.10493842]
[1724694467006,0.31391601,63396.0,63395.0,0.1045]
[1724694467234,0.15617801,63396.0,63395.0,0.1045]
[1724694467554,0.15617801,63396.0,63395.0,0.1275]
[1724694467759,0.15617801,63396.0,63395.0,0.12793842]
[1724694468791,0.16514565,63396.0,63395.0,0.12793842]
[1724694469092,0.16414565,63396.0,63395.0,0.12793842]
[1724694469299,0.16814565,63396.0,63395.0,0.12793842]
[1724694469692,0.16814565,63396.0,63395.0,0.28567942]
[1724694469890,0.16814565,63396.0,63395.0,0.12793842]
[1724694470794,0.31891601,63396.0,63395.0,0.12793842]
[1724694471004,0.16814565,63396.0,63395.0,0.1275]
[1724694471250,0.16814565,63396.0,63395.0,0.12793842]
[1724694471695,0.16814565,63396.0,63395.0,0.285241]
[1724694471896,0.16814565,63396.0,63395.0,0.12793842]
[1724694471897,0.16117801,63396.0,63395.0,0.12793842]
[1724694472301,0.16814565,63396.0,63395.0,0.28567942]
[1724694472504,0.16117801,63396.0,63395.0,0.12793842]
[1724694472715,0.1681722,63396.0,63395.0,0.12793842]
[1724694473029,0.1681722,63396.0,63395.0,0.28567942]
[1724694473523,0.16117801,63396.0,63395.0,0.12793842]
[1724694473849,0.1681722,63396.0,63395.0,0.12793842]
[1724694474890,0.3259102,63396.0,63395.0,0.12793842]
[1724694475263,0.1681722,63396.0,63395.0,0.12793842]
[1724694475432,0.9568642,63396.0,63395.0,0.02343842]
[1724694475644,0.157746,63393.0,63392.0,0.00043842]
[1724694475802,0.315509,63390.0,63387.0,0.00379101]
[1724694476005,0.157758,63388.0,63387.0,0.00422943]
[1724694476216,0.62945301,63388.0,63387.0,0.00422943]
[1724694476450,0.63636737,63388.0,63387.0,0.00422943]
[1724694477138,0.63636737,63388.0,63387.0,0.00379101]
[1724694477540,0.63845301,63388.0,63387.0,0.00379101]
[1724694477750,0.95397001,63388.0,63387.0,0.00379101]
[1724694477955,0.94497001,63388.0,63387.0,0.02679101]
[1724694478930,1.26048701,63388.0,63387.0,0.00422943]
[1724694479076,0.95097001,63388.0,63387.0,0.02722943]
[1724694479266,0.96097001,63388.0,63387.0,0.02722943]
[1724694479469,0.64545301,63388.0,63387.0,0.02722943]
[1724694479902,0.96097001,63388.0,63387.0,0.02722943]
[1724694480253,0.17217801,63388.0,63387.0,0.02679101]
[1724694480486,0.32993601,63388.0,63387.0,0.20899101]
[1724694480706,0.32993601,63388.0,63387.0,0.20942943]
[1724694481544,0.17217801,63388.0,63387.0,0.20942943]
[1724694481756,0.17217801,63388.0,63387.0,0.68327401]
[1724694481757,0.016,63388.0,63387.0,0.68327401]
[1724694481960,0.016,63388.0,63387.0,0.99879601]
[1724694482172,0.016,63388.0,63387.0,1.31431801]
[1724694483013,0.006,63388.0,63387.0,1.31431801]
[1724694483219,0.006,63388.0,63387.0,1.62984001]
[1724694483437,0.009,63388.0,63387.0,1.62984001]
[1724694483634,0.00090971,63396.0,63387.0,1.62984001]
[1724694483635,0.00090971,63396.0,63395.0,1.105187]
[1724694483833,0.00090971,63396.0,63395.0,1.94239208]
[1724694484244,0.00090971,63403.0,63402.0,1.282864]
[1724694484465,0.00090971,63403.0,63402.0,2.09841209]
[1724694484860,0.15854361,63438.0,63422.0,0.1778]
[1724694485067,0.15617801,63435.0,63427.0,0.31532]
[1724694485271,0.15617801,63435.0,63430.0,0.157653]
[1724694485477,0.15617801,63435.0,63429.0,0.098]
[1724694485677,0.00090861,63438.0,63429.0,0.098]
[1724694485678,0.00090861,63438.0,63437.0,0.157636]
[1724694485878,0.15708662,63438.0,63437.0,0.023]
[1724694486131,0.00784948,63438.0,63437.0,0.278636]
[1724694486295,0.00784948,63438.0,63437.0,0.28178831]
[1724694486624,0.00090861,63438.0,63437.0,0.278636]
[1724694486825,0.00090861,63438.0,63437.0,0.593909]
[1724694487026,0.00090861,63438.0,63437.0,0.278636]
[1724694487325,0.15708662,63438.0,63437.0,0.121]
[1724694487703,0.16455782,63438.0,63437.0,0.121]
[1724694488136,0.17555782,63438.0,63437.0,0.121]
[1724694488542,0.17555782,63438.0,63437.0,0.91233455]
[1724694488763,0.01190861,63438.0,63437.0,0.593909]
[1724694488955,0.01190861,63438.0,63437.0,1.25310508]
[1724694489843,0.01190861,63438.0,63437.0,0.93783208]